Cogmind - Beta 14 @@@ ROGUE MODE // 2024.08.19 @ 14:08:08 Player: Xplodonator Result: Destroyed by X-67 Chaingunner with Heavy Machine Gun Performance ------------- Evolutions (5) 2500 Regions Visited (11) 2200 Robots Destroyed (91) 455 Value Destroyed (3392) 3392 Prototype IDs (3) 60 Alien Tech Used (0) 0 Bonus (528) 528 TOTAL SCORE: 9135 Bonus ------- Follower Combat Kills 28 Entered DSFs 500 Cogmind --------- Core Integrity 0/1000 Matter 300/300 Energy 22/100 System Corruption 2% Temperature Cool (1) Movement Core (50) Location -5/Factory Parts ------- > --- POWER (3) -------- (None) > --- PROPULSION (3) --- (None) > --- UTILITY (7) ------ (None) > --- WEAPON (4) ------- (None) > --- INVENTORY (5) ---- Backup Power III Advanced Heat Sink Improved Focal Shield Force Field Advanced Plasma Cannon Peak State ------------ > --- POWER ------------ Improved Deuterium Engine Improved Deuterium Engine Improved Deuterium Engine > --- PROPULSION ------- Medium Treads Medium Treads Medium Treads > --- UTILITY ---------- Improved Heat Sink Improved Heat Sink Improved Heat Sink High-capacity Storage Unit Large Battery Improved Utility Shielding Improved Medium Armor Plating > --- WEAPON ----------- Gatling Laser Gatling Laser Thermic Laser Beamcaster > --- INVENTORY -------- Armored Treads Armored Treads Medium Treads Improved Heat Sink Advanced Heat Sink Advanced Heat Sink High-capacity Storage Unit Large Battery Targeting Computer Weapon Cycler Utility Shielding Force Field Force Field Drone Bay Plasma Rifle Thermic Laser Thermic Laser Thermic Laser Variable Charge Gun [Rating: 67] Favorites ----------- Power Light Nuclear Core Engine Improved Deuterium Engine Power Core Light Nuclear Core Propulsion Medium Treads Treads Medium Treads Utility High-capacity Storage Unit Device Heat Sink Storage High-capacity Storage Unit Protection Improved Utility Shielding Weapon Particle Gun Energy Gun Particle Gun Energy Cannon EM Pulse Cannon Ballistic Gun Light Assault Rifle Launcher Improved Grenade Launcher Build | -11 -10 -10 -10 -9 -8 -7 -7 -7 -6 -6 -5 ------- Run | Yrd Mat Min Exi Min Mat Fac Low Low Fac DSF Fac Slots Evolved 10 | . . . . . 4 2 . . 2 . 2 Power 2 | . . . . . 1 . . . . . 1 Propulsion 1 | . . . . . . 1 . . . . . Utility 5 | . . . . . 1 1 . . 2 . 1 Weapon 2 | . . . . . 2 . . . . . . Parts Attached 88 | 7 6 7 3 . 25 7 2 . 2 5 24 Power 18 | 1 1 2 . . 7 1 . . . . 6 Engine 11 | 1 1 2 . . 2 1 . . . . 4 Core 7 | . . . . . 5 . . . . . 2 Reactor . | . . . . . . . . . . . . Propulsion 15 | 2 . 2 . . 5 3 . . . . 3 Treads 15 | 2 . 2 . . 5 3 . . . . 3 Leg . | . . . . . . . . . . . . Wheel . | . . . . . . . . . . . . Hover . | . . . . . . . . . . . . Flight . | . . . . . . . . . . . . Utility 24 | 2 2 . 3 . 4 2 1 . 2 1 7 Device 11 | 1 1 . 1 . 2 2 1 . 1 . 2 Storage 6 | 1 1 . 2 . . . . . . . 2 Processor . | . . . . . . . . . . . . Hackware . | . . . . . . . . . . . . Protection 7 | . . . . . 2 . . . 1 1 3 Artifact . | . . . . . . . . . . . . Weapon 31 | 2 3 3 . . 9 1 1 . . 4 8 Energy Gun 23 | 2 2 1 . . 6 1 1 . . 4 6 Energy Cannon 4 | . . 1 . . 1 . . . . . 2 Ballistic Gun 2 | . 1 . . . 1 . . . . . . Ballistic Cannon . | . . . . . . . . . . . . Launcher 2 | . . 1 . . 1 . . . . . . Special Weapon . | . . . . . . . . . . . . Impact Weapon . | . . . . . . . . . . . . Slashing Weapon . | . . . . . . . . . . . . Piercing Weapon . | . . . . . . . . . . . . Special Melee Weapon . | . . . . . . . . . . . . Unidentified Prototypes 1 | . . . . . 1 . . . . . . Parts Lost 55 | . 3 6 . . 8 . 2 . . 1 35 Power 9 | . . 1 . . 2 . . . . . 6 Propulsion 8 | . . 2 . . 1 . . . . . 5 Utility 16 | . 1 . . . 2 . 1 . . . 12 Weapon 22 | . 2 3 . . 3 . 1 . . 1 12 Highest Loss Streak 16 | . 2 5 . . 5 . 2 . . 1 16 To Critical Strikes . | . . . . . . . . . . . . Average Slot Usage (%) 95 | . 98 85 98 100 94 100 99 100 . 99 90 Engine 8 | . 14 11 14 14 1 6 7 7 . 6 11 Core 5 | . . . . . 15 7 7 7 . 6 1 Treads 22 | . 28 27 28 28 17 23 23 23 . 20 14 Device 14 | . 13 14 12 14 8 20 22 23 . 26 17 Storage 10 | . 14 14 14 14 9 7 7 7 . 6 12 Protection 3 | . . . . . 7 2 . . . 6 7 Energy Gun 18 | . 19 3 14 14 23 23 22 23 . 25 21 Energy Cannon 6 | . . 11 14 14 3 7 7 7 . . . Launcher 1 | . . . . . 5 . . . . . . Peak Build Rating 67 | 7 7 15 17 16 30 46 49 49 53 57 67 Average Rating 28 | 4 6 8 15 16 26 43 46 49 52 56 57 On Entrance 28 | . 7 7 15 16 16 30 46 49 49 53 57 Naked Turns 2 | . . . . . . . . . . . 2 Heaviest Build 102 | 12 48 55 55 55 71 75 76 76 84 84 102 Greatest Support 84 | 40 40 40 40 40 40 84 84 84 84 84 84 Greatest Overweight (x) 21 | . 1 14 1 1 21 . . . . . 1 Average Overweight (x) . | . . 1 1 1 1 . . . . . 1 Largest Inventory Capacity 35 | 8 20 20 35 20 20 20 20 20 20 20 20 Average Capacity 19 | 6 19 20 19 20 20 20 20 20 20 20 19 Most Carried 20 | 4 9 14 20 18 20 20 20 20 19 20 20 Average Carried 15 | 1 5 8 16 18 17 19 19 20 18 19 16 Final Capacity 20 | 8 20 20 20 20 20 20 20 20 20 20 5 Final Carried 20 | 3 9 14 18 18 19 20 20 20 18 20 5 Class Distribution -------------------- 42% | Mutant 35% | Tank 19% | Scavenger-Tank Dominant Class ---------------- Mutant | -10/Materials Mutant | -10/Mines Mutant | -10/Exiles Mutant | -9/Mines Scavenger-Tank | -8/Materials Tank | -7/Factory Tank | -7/Lower Caves Tank | -7/Lower Caves Tank | -6/Factory Tank | -6/DSF Scavenger-Tank | -5/Factory Resources | -11 -10 -10 -10 -9 -8 -7 -7 -7 -6 -6 -5 ----------- Run | Yrd Mat Min Exi Min Mat Fac Low Low Fac DSF Fac Matter Collected 1267 | 128 192 125 50 . 449 70 20 . . 70 163 Remotely . | . . . . . . . . . . . . Salvage Created 3919 | 128 347 128 . 16 964 400 378 . . 301 1257 Parts 161 | 4 31 3 . 2 44 10 18 . . 19 30 Haulers Intercepted 4 | . . . . . 3 . . . . . 1 Recyclers Shooed . | . . . . . . . . . . . . Parts Field Recycled . | . . . . . . . . . . . . Retrieved Matter . | . . . . . . . . . . . . Parts Self-Destructed 36 | . . . . . . . 36 . . . . Prevented . | . . . . . . . . . . . . Kills | -11 -10 -10 -10 -9 -8 -7 -7 -7 -6 -6 -5 ------- Run | Yrd Mat Min Exi Min Mat Fac Low Low Fac DSF Fac Combat Hostiles Destroyed 79 | . 15 3 . 1 19 6 7 . . 5 23 Guns 59 | . 15 1 . . 7 4 5 . . 5 22 Cannons 13 | . . 1 . 1 7 2 2 . . . . AOE 6 | . . 1 . . 5 . . . . . . Classes Destroyed 14 | 2 3 . . . 4 1 1 . . 2 1 Worker 3 | . 1 . . . . . . . . . 2 Tunneler 1 | 1 . . . . . . . . . . . Hauler 4 | . . . . . 3 . . . . . 1 Recycler 1 | 1 . . . . . . . . . . . Mechanic 1 | . . . . . . 1 . . . . . Watcher 2 | . . . . . 1 . . . . . 1 Swarmer 21 | . 11 . . 1 4 . 1 . . . 4 Grunt 34 | . 4 3 . . 9 3 1 . . 3 11 Duelist 2 | . . . . . . . . . . . 2 Sentry 8 | . . . . . 5 2 . . . . 1 Specialist 1 | . . . . . . . . . . 1 . Hunter 4 | . . . . . 1 1 . . . . 2 Programmer 4 | . . . . . . . 1 . . . 3 Heavy 1 | . . . . . . . . . . 1 . Thug 4 | . . . . . . . 4 . . . . Best Kill Streak 8 | 1 6 1 . 1 3 3 3 . . 2 8 Combat Bots Only 6 | . 5 1 . 1 3 3 3 . . 2 6 Max Kills in Single Turn 2 | 1 2 1 . 1 1 1 1 . . 1 2 Gunslinging 1 | . 1 . . . . . . . . . 1 Exploded 1 | . . 1 . . 1 . . . . . . Melee . | . . . . . . . . . . . . Uniques/NPCs Destroyed . | . . . . . . . . . . . . Combat | -11 -10 -10 -10 -9 -8 -7 -7 -7 -6 -6 -5 -------- Run | Yrd Mat Min Exi Min Mat Fac Low Low Fac DSF Fac Hostile Shots Fired 667 | . 69 52 . 2 134 27 18 . . 23 342 Missed 180 | . 21 16 . 1 29 9 2 . . 3 99 Damage Taken 8048 | . 411 513 . 6 1715 139 269 . . 411 4584 Core 1636 | . 74 113 . 6 258 33 100 . . 28 1024 Absorbed by Shields 277 | . . . . . . 56 45 . . 126 50 Redirected to Shielding 196 | . . . . . 31 7 . . . . 158 Regen/Repaired (Parts) 25 | . . . . . . . . . . . 25 Core Remaining (%) 70 | 100 . . . 22 53 . . 81 . 96 . Volleys Fired 225 | 3 37 25 . 1 59 13 15 . . 13 59 Largest 4 | 2 2 2 . 2 4 4 4 . . 4 4 Hottest 320 | 80 80 63 . 113 251 236 235 . . 320 320 Shots Fired 599 | 6 61 36 . 2 160 52 56 . . 49 177 Gun 526 | 6 61 25 . 1 129 39 41 . . 49 175 Cannon 60 | . . 3 . 1 26 13 15 . . . 2 Launcher 13 | . . 8 . . 5 . . . . . . Special . | . . . . . . . . . . . . Kinetic 29 | . 11 14 . . 4 . . . . . . Thermal 451 | 3 25 11 . . 110 47 40 . . 38 177 Explosive 13 | . . 8 . . 5 . . . . . . Electromagnetic 106 | 3 25 3 . 2 41 5 16 . . 11 . Robot Hit Streak 24 | 3 6 6 . 1 14 10 19 . . 24 17 Robot Miss Streak 8 | 1 3 2 . 2 8 3 2 . . 4 4 Penetration Max . | . . . . . . . . . . . . Secondary Targets 15 | . 2 1 . . 1 . . . . 1 10 Max Gunslinging Chain 1 | . 1 1 . . 1 . . . . 1 1 Shots Hit Robots 395 | 3 38 19 . 1 88 33 36 . . 37 140 Core Hits 213 | 2 21 9 . 1 40 18 15 . . 20 87 Critical Kills . | . . . . . . . . . . . . Critical Parts Destroyed . | . . . . . . . . . . . . Critical Strikes 21 | . 1 . . . 5 3 1 . . 1 10 Burn 20 | . . . . . 5 3 1 . . 1 10 Corrupt 1 | . 1 . . . . . . . . . . Melee Attacks . | . . . . . . . . . . . . Impact . | . . . . . . . . . . . . Slashing . | . . . . . . . . . . . . Piercing . | . . . . . . . . . . . . Sneak Attacks . | . . . . . . . . . . . . Combat Hostiles . | . . . . . . . . . . . . Follow-up Attacks . | . . . . . . . . . . . . Damage Inflicted 8007 | 39 448 320 . 21 2208 534 655 . . 746 3036 Guns 6394 | 39 448 156 . . 1128 440 465 . . 746 2972 Cannons 841 | . . 56 . 21 416 94 190 . . . 64 Explosions 772 | . . 108 . . 664 . . . . . . Melee . | . . . . . . . . . . . . Ramming . | . . . . . . . . . . . . Kinetic 170 | . 68 69 . . 33 . . . . . . Thermal 6088 | 11 158 87 . . 1132 505 529 . . 630 3036 Explosive 530 | . . 108 . . 422 . . . . . . Electromagnetic 1219 | 28 222 56 . 21 621 29 126 . . 116 . Impact . | . . . . . . . . . . . . Slashing . | . . . . . . . . . . . . Piercing . | . . . . . . . . . . . . Highest Corruption 2 | . . . . . . . 1 1 . . 2 Average Corruption 1 | . . . . . . . 1 1 . . 1 Corruption Purged . | . . . . . . . . . . . . Corruption Blocked . | . . . . . . . . . . . . Effects 6 | . . . . . . . 2 . . . 4 Message Errors 1 | . . . . . . . . . . . 1 Matter Fused 2 | . . . . . . . 1 . . . 1 Heat Flow Errors 1 | . . . . . . . . . . . 1 Energy Discharges 1 | . . . . . . . 1 . . . . Data Loss (minor) 1 | . . . . . . . . . . . 1 Overload Shots . | . . . . . . . . . . . . Overflow Damage 36 | . . . . . 36 . . . . . . Projectiles 11 | . . . . . 11 . . . . . . Explosions 25 | . . . . . 25 . . . . . . Melee . | . . . . . . . . . . . . Knockbacks . | . . . . . . . . . . . . Impact . | . . . . . . . . . . . . Kinetic . | . . . . . . . . . . . . Secondary . | . . . . . . . . . . . . Self-Inflicted Damage 86 | . . 37 . . 49 . . . . . . Shots 6 | . . 3 . . 3 . . . . . . Rammed . | . . . . . . . . . . . . Targets Rammed . | . . . . . . . . . . . . Kicked . | . . . . . . . . . . . . Crushed . | . . . . . . . . . . . . Highest Temperature 828 | 36 90 24 . 24 828 518 197 . . 197 417 Average Temperature 150 | 18 36 7 . 16 221 145 108 . . 95 98 Received Heat Transfer 2250 | . 60 246 . . 792 44 131 . . 98 879 Effects 54 | . . . . . 51 1 . . . . 2 Shutdowns 13 | . . . . . 12 . . . . . 1 Energy Bleed 4 | . . . . . 2 1 . . . . 1 Interference 13 | . . . . . 13 . . . . . . Matter Decay 3 | . . . . . 3 . . . . . . Short Circuit 5 | . . . . . 5 . . . . . . Damage (minor) 4 | . . . . . 4 . . . . . . Damage (major) 10 | . . . . . 10 . . . . . . Damage (core) 2 | . . . . . 2 . . . . . . Siege Activations . | . . . . . . . . . . . . Robots Corrupted . | . . . . . . . . . . . . Combat Hostiles . | . . . . . . . . . . . . Parts Fried 3 | . . 1 . . 2 . . . . . . Impact Corruptions . | . . . . . . . . . . . . Robots Melted 2 | . . . . . . . . . . . 2 Combat Hostiles 1 | . . . . . . . . . . . 1 Parts Melted 44 | . . . . . 8 7 2 . . 2 25 Heat Transferred 14676 | 25 350 200 . . 2875 1332 1073 . . 1521 7300 Parts Sabotaged . | . . . . . . . . . . . . Parts Stolen . | . . . . . . . . . . . . Parts Stripped . | . . . . . . . . . . . . Power Chain Reactions 2 | . . . . . 2 . . . . . . Alert | -11 -10 -10 -10 -9 -8 -7 -7 -7 -6 -6 -5 ------- Run | Yrd Mat Min Exi Min Mat Fac Low Low Fac DSF Fac Peak Influence 281 | 10 256 97 . 65 281 207 . . . 103 249 Initial 72 | . 6 53 . . 22 72 . . . 3 53 Average 94 | 3 77 36 . 40 133 123 . . . 44 127 Maximum Alert Level 1 | . 1 . . . 1 1 . . . . 1 Low Security (%) 87 | 100 95 100 . 100 83 75 . . 100 100 70 Level 1 12 | . 4 . . . 16 24 . . . . 29 Level 2 . | . . . . . . . . . . . . Level 3 . | . . . . . . . . . . . . Level 4 . | . . . . . . . . . . . . Level 5 . | . . . . . . . . . . . . High Security . | . . . . . . . . . . . . Max Security . | . . . . . . . . . . . . Squads Dispatched 13 | . 2 1 . . 5 2 . . . 1 2 Investigation 7 | . 1 1 . . 3 1 . . . . 1 Extermination 2 | . . . . . . 1 . . . . 1 Reinforcement 4 | . 1 . . . 2 . . . . 1 . Assault . | . . . . . . . . . . . . Garrison . | . . . . . . . . . . . . Intercept . | . . . . . . . . . . . . Searches Triggered . | . . . . . . . . . . . . Construction Impeded . | . . . . . . . . . . . . Haulers Reinforced . | . . . . . . . . . . . . Active Scanning Responses . | . . . . . . . . . . . . Cargo Convoy Interrupts 1 | . . . . . . . . . . . 1 Stealth | -11 -10 -10 -10 -9 -8 -7 -7 -7 -6 -6 -5 --------- Run | Yrd Mat Min Exi Min Mat Fac Low Low Fac DSF Fac Distress Signals 5 | . 3 . . . 1 1 . . . . . Communications Jammed . | . . . . . . . . . . . . Distress Signals . | . . . . . . . . . . . . Times Spotted 119 | . 24 2 . 5 24 8 8 . . 5 43 Peak Tracking Total 11 | . 4 2 . 3 4 3 4 . . 3 11 Tactical Retreats 8 | . . . . 1 5 . 1 . . . 1 Traps | -11 -10 -10 -10 -9 -8 -7 -7 -7 -6 -6 -5 ------- Run | Yrd Mat Min Exi Min Mat Fac Low Low Fac DSF Fac Traps Triggered 4 | . 1 1 . . 2 . . . . . . Indirectly . | . . . . . . . . . . . . Trap Hack Attempts . | . . . . . . . . . . . . Triggered . | . . . . . . . . . . . . Disarmed . | . . . . . . . . . . . . Reprogrammed . | . . . . . . . . . . . . Reused . | . . . . . . . . . . . . Traps Extracted . | . . . . . . . . . . . . Installed . | . . . . . . . . . . . . Triggered . | . . . . . . . . . . . . Machines | -11 -10 -10 -10 -9 -8 -7 -7 -7 -6 -6 -5 ---------- Run | Yrd Mat Min Exi Min Mat Fac Low Low Fac DSF Fac Machines Disabled 6 | . . 1 . . 3 1 1 . . . . Max in Single Turn 2 | . . 1 . . 2 1 1 . . . . Machines Repaired . | . . . . . . . . . . . . Machines Dismantled . | . . . . . . . . . . . . Machines Sabotaged . | . . . . . . . . . . . . Overloaded Fab Kills . | . . . . . . . . . . . . Hacking | -11 -10 -10 -10 -9 -8 -7 -7 -7 -6 -6 -5 --------- Run | Yrd Mat Min Exi Min Mat Fac Low Low Fac DSF Fac Machines Accessed 12 | . 4 1 1 . 2 2 . . 1 . 1 Terminals 8 | . 4 . . . 2 1 . . 1 . . Fabricators . | . . . . . . . . . . . . Repair Stations 2 | . . . . . . 1 . . . . 1 Recycling Units . | . . . . . . . . . . . . Scanalyzers . | . . . . . . . . . . . . Garrison Access . | . . . . . . . . . . . . Total Hacks 31 | . 12 1 4 . 4 3 . . 4 . 3 Successful 21 | . 8 1 4 . 4 1 . . 1 . 2 Failed 10 | . 4 . . . . 2 . . 3 . 1 Catastrophic 1 | . 1 . . . . . . . . . . Database Lockouts . | . . . . . . . . . . . . Manual . | . . . . . . . . . . . . Terminals 21 | . 12 . . . 4 1 . . 4 . . Fabricators . | . . . . . . . . . . . . Repair Stations 5 | . . . . . . 2 . . . . 3 Recycling Units . | . . . . . . . . . . . . Scanalyzers . | . . . . . . . . . . . . Garrison Access . | . . . . . . . . . . . . Terminal Hacks 19 | . 8 1 4 . 4 1 . . 1 . . Record 11 | . 4 . 4 . 2 1 . . . . . Prototype ID Bank 1 | . 1 . . . . . . . . . . Open Door 1 | . . 1 . . . . . . . . . Open DSF 1 | . . . . . . . . . 1 . . Emergency Access Points 1 | . . . . . 1 . . . . . . Alert Level 2 | . 1 . . . 1 . . . . . . Unreport Threat 1 | . 1 . . . . . . . . . . Dispatch Records 1 | . 1 . . . . . . . . . . Fabricator Hacks . | . . . . . . . . . . . . Repair Station Hacks 2 | . . . . . . . . . . . 2 Scan Component 1 | . . . . . . . . . . . 1 Repair 1 | . . . . . . . . . . . 1 Recycling Unit Hacks . | . . . . . . . . . . . . Scanalyzer . | . . . . . . . . . . . . Garrison Access Hacks . | . . . . . . . . . . . . Unauthorized Hacks . | . . . . . . . . . . . . Terminals . | . . . . . . . . . . . . Fabricators . | . . . . . . . . . . . . Repair Stations . | . . . . . . . . . . . . Recycling Units . | . . . . . . . . . . . . Scanalyzers . | . . . . . . . . . . . . Garrison Access . | . . . . . . . . . . . . Data Cores Recovered . | . . . . . . . . . . . . Used . | . . . . . . . . . . . . Hacking Detections 5 | . 1 . . . 1 1 . . 1 . 1 Full Trace Events 3 | . . . . . 1 1 . . . . 1 Feedback Events . | . . . . . . . . . . . . Feedback Blocked . | . . . . . . . . . . . . Robot Schematics Acquired . | . . . . . . . . . . . . Robots Built . | . . . . . . . . . . . . Authchips . | . . . . . . . . . . . . Time . | . . . . . . . . . . . . Total Robot Build Rating . | . . . . . . . . . . . . Part Schematics Acquired . | . . . . . . . . . . . . Parts Built . | . . . . . . . . . . . . Authchips . | . . . . . . . . . . . . Time . | . . . . . . . . . . . . Total Part Build Rating . | . . . . . . . . . . . . Parts Repaired 1 | . . . . . . . . . . . 1 Time 44 | . . . . . . . . . . . 44 Parts Recycled . | . . . . . . . . . . . . Recycled Matter . | . . . . . . . . . . . . Retrieved Matter . | . . . . . . . . . . . . Retrieved Components . | . . . . . . . . . . . . Parts Scanalyzed . | . . . . . . . . . . . . Part Schematics Acquired . | . . . . . . . . . . . . Parts Damaged . | . . . . . . . . . . . . Bothacking | -11 -10 -10 -10 -9 -8 -7 -7 -7 -6 -6 -5 ------------ Run | Yrd Mat Min Exi Min Mat Fac Low Low Fac DSF Fac Used RIF Installer . | . . . . . . . . . . . . Robots Hacked . | . . . . . . . . . . . . Non-combat . | . . . . . . . . . . . . Combat . | . . . . . . . . . . . . Robot Hacks Applied . | . . . . . . . . . . . . Relay Couplers Released . | . . . . . . . . . . . . Fabnet Peak Effective % . | . . . . . . . . . . . . Robots Rewired . | . . . . . . . . . . . . Allies Hacked . | . . . . . . . . . . . . Hacks Repelled . | . . . . . . . . . . . . Allies | -11 -10 -10 -10 -9 -8 -7 -7 -7 -6 -6 -5 -------- Run | Yrd Mat Min Exi Min Mat Fac Low Low Fac DSF Fac Total Allies 4 | . . 2 . 2 . . . . . . . Largest Group 4 | . . 2 2 4 . . . . . . . Highest-Rated Group 63 | . . 24 24 63 . . . . . . . Highest-Rated Ally 31 | . . 16 16 31 . . . . . . . Total Orders . | . . . . . . . . . . . . Ally Attacks 21 | . . . . 21 . . . . . . . Total Damage 211 | . . . . 211 . . . . . . . Kills 4 | . . . . 4 . . . . . . . Allies Corrupted . | . . . . . . . . . . . . Allies Melted . | . . . . . . . . . . . . Intel | -11 -10 -10 -10 -9 -8 -7 -7 -7 -6 -6 -5 ------- Run | Yrd Mat Min Exi Min Mat Fac Low Low Fac DSF Fac Robot Analysis Total . | . . . . . . . . . . . . Derelict Logs Recovered 1 | . . . . . . . . 1 . . . Drone Launches . | . . . . . . . . . . . . Drone Recoveries . | . . . . . . . . . . . . Exploration | -11 -10 -10 -10 -9 -8 -7 -7 -7 -6 -6 -5 ------------- Run | Yrd Mat Min Exi Min Mat Fac Low Low Fac DSF Fac Turns Passed 7311 | 93 764 947 562 555 1921 526 859 12 9 191 872 Spaces Moved 2758 | 47 267 345 224 222 604 283 456 7 5 78 220 Core 8 | 6 . 1 . . 1 . . . . . . Treads 2750 | 41 267 344 224 222 603 283 456 7 5 78 220 Legs . | . . . . . . . . . . . . Wheels . | . . . . . . . . . . . . Hover . | . . . . . . . . . . . . Flight . | . . . . . . . . . . . . Fastest Speed 50 | 50 160 240 240 240 240 160 160 160 160 160 240 Average Speed 216 | 145 235 241 240 240 251 160 160 160 160 160 242 Slowest Speed 1100 | 160 240 750 240 240 1100 160 160 160 160 160 250 Overloaded Moves . | . . . . . . . . . . . . Propulsion Burnouts . | . . . . . . . . . . . . Robots Hopped . | . . . . . . . . . . . . Cave-ins Triggered . | . . . . . . . . . . . . Exploration Rate (%) 39 | 5 57 81 54 39 38 8 51 6 . 88 7 Regions Visited 11 Branch Regions 5 Pre-discovered Areas . | . . . . . . . . . . . . Known Exits Taken 1 | . . . . . . . . . 1 . . Unknown Exits Taken 9 | 1 1 1 1 1 1 1 1 1 . . . Scrap Searched 6 | . . 2 . 1 . . 3 . . . . Spaces Dug 7 | . . . . . 7 . . . . . . Terrain Destroyed 99 | . . 44 . . 53 . . . . . 2 Melee . | . . . . . . . . . . . . Projectile 2 | . . . . . . . . . . . 2 AOE 97 | . . 44 . . 53 . . . . . . Terrain Rammed . | . . . . . . . . . . . . Walls Destroyed . | . . . . . . . . . . . . Machines Disabled . | . . . . . . . . . . . . Actions | -11 -10 -10 -10 -9 -8 -7 -7 -7 -6 -6 -5 --------- Run | Yrd Mat Min Exi Min Mat Fac Low Low Fac DSF Fac Total 3656 | 66 347 426 251 243 894 330 550 8 6 114 421 Wait 401 | . 23 38 . 21 142 3 73 2 . . 99 Move 2747 | 46 266 344 223 221 603 282 455 6 4 77 220 Hop . | . . . . . . . . . . . . Pick Up 136 | 10 11 11 22 . 38 12 3 . . 11 18 Fast Attach 1 | . . . . . . 1 . . . . . Attach 87 | 7 6 7 3 . 25 6 2 . 2 5 24 Detach 8 | . 2 1 . . 2 3 . . . . . Swap . | . . . . . . . . . . . . Drop 50 | . 2 . 3 . 25 10 1 . . 8 1 Fire 225 | 3 37 25 . 1 59 13 15 . . 13 59 Melee . | . . . . . . . . . . . . Ram . | . . . . . . . . . . . . Kick . | . . . . . . . . . . . . Crush . | . . . . . . . . . . . . Escape Stasis . | . . . . . . . . . . . . Rewire . | . . . . . . . . . . . . Trap . | . . . . . . . . . . . . Miscellaneous 1 | . . . . . . . 1 . . . . Route ------- -11/Scrapyard -10/Materials (discovered 2 exits: [*Mat] / *Min) -10/Mines -10/Exiles -9/Mines -8/Materials -7/Factory -7/Lower Caves -7/Lower Caves -6/Factory (discovered 2 exits: Low / DSF) -6/DSF -5/Factory History --------- Turn | Location | Event 5 | -11/Scrapyard | Discovered new exit (range 16) 94 | -11/Scrapyard | Entered Materials 316 | -10/Materials | Build established: Mutant 568 | -10/Materials | Discovered new exit (range 16) 660 | -10/Materials | Discovered new exit (range 16) 858 | -10/Materials | Entered Mines 918 | -10/Mines | Core integrity fell below 50% 946 | -10/Mines | Lost 5 parts (1p2n2w) 947 | -10/Mines | Met a Derelict who couldn't figure out how to use a Trap Extractor 1521 | -10/Mines | Assisted by bots powering up and referring to "LRC-V3" 1576 | -10/Mines | Met a Derelict shopkeep closing up shop 1795 | -10/Mines | Deemed a non-threat by the Exiles lab entrance 1795 | -10/Mines | Discovered new exit (range 5) 1805 | -10/Mines | Entered Exiles 1805 | -10/Exiles | Accompanied by 2 allies 1876 | -10/Exiles | Met 8R-AWN 1921 | -10/Exiles | Met EX-HEX 2138 | -10/Exiles | Met EX-DEC 2268 | -10/Exiles | Discovered new exit (range 15) 2367 | -10/Exiles | Entered Mines 2367 | -9/Mines | Accompanied by 2 allies 2903 | -9/Mines | Discovered new exit (range 9) 2922 | -9/Mines | Entered Materials 2922 | -8/Materials | Evolved 4 slots: Power x1, Utility x1, Weapon x2 3395 | -8/Materials | Lost 5 parts (2p2u1w) 3683 | -8/Materials | Build established: Tank 3990 | -8/Materials | Build established: Scavenger-Tank 4798 | -8/Materials | Discovered new exit (range 15) 4843 | -8/Materials | Entered Factory 4843 | -7/Factory | Evolved 2 slots: Propulsion x1, Utility x1 5050 | -7/Factory | Build established: Tank 5356 | -7/Factory | Discovered new exit (range 9) 5369 | -7/Factory | Entered Lower Caves 5745 | -7/Lower Caves | Activated DRS Beacon 5847 | -7/Lower Caves | Attacked by a delusional Derelict stockpiling Unaware 6006 | -7/Lower Caves | Found DCF Scrap (14 items) 6150 | -7/Lower Caves | Ambushed by wild Derelicts 6225 | -7/Lower Caves | Discovered new exit (range 3) 6228 | -7/Lower Caves | Entered another Lower Caves area 6228 | -7/Lower Caves | Discovered new exit (range 7) 6229 | -7/Lower Caves | Encountered a Warlord checkpoint 6235 | -7/Lower Caves | Learned location of 1 exit from Factory 6240 | -7/Lower Caves | Entered Factory 6240 | -6/Factory | Evolved 2 slots: Utility x2 6241 | -6/Factory | Identified exit to Lower Caves 6249 | -6/Factory | Identified exit to DSF 6249 | -6/Factory | Entered DSF 6319 | -6/DSF | Additional patrols routed to DSF 6409 | -6/DSF | Discovered new exit (range 15) 6440 | -6/DSF | Entered Factory 6440 | -5/Factory | Evolved 2 slots: Power x1, Utility x1 6931 | -5/Factory | Repaired Imp. Deuterium Engine 7078 | -5/Factory | Lost 9 parts (2p2n2u3w) 7188 | -5/Factory | Lost 5 parts (1p1u3w) 7271 | -5/Factory | Cargo convoy interrupted 7282 | -5/Factory | Core integrity fell below 50% 7311 | -5/Factory | Core integrity fell below 20% 7312 | -5/Factory | Destroyed by X-67 Chaingunner with Heavy Machine Gun Last Messages --------------- 07305_ K-01 Serf collects debris. 07305_ U-05 Engineer lays Concrete. 07306_ U-05 Engineer builds a Wall. 07306_ K-01 Serf collects debris. 07306_ U-05 Engineer lays Concrete. 07307_ Wall collapses. 07307_ Slug penetrates Wall. 07307_ Adv. Heat Sink destroyed. 07308_ Penetrated by Slug. 07308_ U-05 Engineer builds a Wall. 07308_ U-05 Engineer lays Concrete. 07308_ Hcp. Storage Unit destroyed. 07309_ K-01 Serf collects debris. 07310_ Adv. Plasma Cannon destroyed. 07310_ Imp. Heat Sink destroyed. 07310_ Adv. Plasma Cannon destroyed. 07310_ Penetrated by Slug. 07310_ K-01 Serf collects debris. 07311_ Penetrated by Slug. 07311_ U-05 Engineer builds a Wall. Map ----- +----------------------------------------------------+ | ?????????????????????????????????????????????????? | | ?????????????????????????????????????????????????? | | ?????????????????????????????????????????????????? | | ?????????????????????????????????????????????????? | | ?????????????????????????????????????????????????? | | ?????????????????????????????????????????????????? | | ?????????????????????????????????????????????????? | | ?????????????????????????????????????????????????? | | ?????????????????????????????????????????????????? | | ?????????????????????????????????????????????????? | | ?????????????????????????????????????????????????? | | ?????????????????????#####?? ????????????????????? | | ?????????????????? ? "????????????????????? | | ???????????????? ^^ # "????????????????????? | | ????????? ^ # "????????????????????? | | ???????# # ????????????????????? | | ???? + ""???????????????????? | | ?? # """ ?????????????????? | | ?# # """ ?????????????????? | | ## # ???????????????? | | ## # """ ????????????????? | | # """ ?????????????????? | | u u# """??????????????????? | | !!# ????????????????????? | | u i!]###????????????????????? | | !!@# #????????????????????? | | xxpx###????????????????????? | | x%################???????? | | !% huh=% ^ " ??????? | | A i ! [ k"%% ^ %%" ??????? | | % != "%= %% % ""???????? | | ! [ % ![] ""???????? | | ! ![] ""???????? | | """+#################### [] ???????? | | # #? ????????? ""???????? | | # """"""" #?#?????????? "????????? | | # """"""" #?????????????????????????? | | !^ # """"""" #?????????????????????????? | | ! # """"""" #?????????????????????????? | | ! # #?????????????????????????? | | ##### [#?????????????????????????? | | #???# #?????????????????????????? | | !!! #???# #?????????????????????????? | | !! #???# " " #?????????????????????????? | | !! #???# "R" #?????????????????????????? | | #???# """ #?????????????????????????? | | #???##############?????????????????????????? | | +#### ############???????????????????????????????? | | #??# ## #???????????????????????????????? | | #??# ## #???????????????????????????????? | +----------------------------------------------------+ Best States ------------- Heat Dissipation 87 Coolant Potential 65 Energy Generation 38 Energy Capacity 870 Matter Stores 300 Matter Capacity 300 Sight Range 16 Terrain Scan Density 10 Armor Coverage 225 Utility Shielding 66 Evasion (%) 40 Recoil Reduction 3 Item Schematics ----------------- None Robot Schematics ------------------ None Fabricated ------------ Nothing Alien Tech Used ----------------- None Achievements -------------- None Challenges ------------ None Game ------ Seed ControlArmageddonFalx Manual? 0 Play Time 01:22:29 Cumulative 18.4 hours Start 2024.08.19 @ 12:17:41 End 2024.08.19 @ 14:08:08 Sessions 3 Manual Loads 0 Difficulty Rogue Special Mode None Game No. 22 Rogue 22 Adventurer 0 Explorer 0 Win Type - Total 0 Types 0/0/0/0/0/0/0/0/0 Lore% 10 Gallery% 17 Achievement% 16 Wizard Run 0 Options --------- Layout 1 ASCII 0 Keyboard 0 Movement Mouse Keybinds 0 Fullscreen 2 Font 24/Smallcaps Map View 50x35 Zoom Use 0% Tactical HUD 1 Map Filters NONE Filters NONE Steam 1 RUN: 64ec5008-dcbc-4a1d-a551-dc16e6aabfce